bitfinex-derivatives/quotes_BTCF0:USTF0_20250318
["timestamp","ask_amount","ask_price","bid_price","bid_amount"]
[1742312767503,0.31749933,82040.0,82039.0,0.00018279]
[1742312767799,0.33056827,82040.0,82039.0,0.00018279]
[1742312768209,0.2438513,82028.0,82022.0,0.0609641]
[1742312768508,0.4827238,82025.0,82024.0,0.1247621]
[1742312769006,0.5156238,82025.0,82024.0,0.1247621]
[1742312769205,0.5463238,82025.0,82024.0,0.1247621]
[1742312769409,0.5463238,82025.0,82024.0,0.2466873]
[1742312769609,0.1219267,82023.0,82022.0,0.003]
[1742312769799,0.54744561,82025.0,82023.0,0.0609633]
[1742312769999,0.0307,82025.0,82024.0,0.1219252]
[1742312770211,0.0329,82031.0,82029.0,0.1219163]
[1742312770398,0.12616,82031.0,82030.0,0.1843163]
[1742312770599,0.2480748,82031.0,82030.0,0.1843163]
[1742312771104,0.12616,82031.0,82030.0,0.1843163]
[1742312771505,0.12816,82031.0,82030.0,0.1843163]
[1742312772715,0.3030748,82031.0,82030.0,0.1843163]
[1742312772911,0.2818748,82031.0,82030.0,0.1219163]
[1742312773106,0.4126748,82031.0,82030.0,0.1219163]
[1742312773311,0.3444748,82031.0,82030.0,0.1219163]
[1742312773511,0.3444748,82031.0,82027.0,0.0609601]
[1742312773512,0.1219193,82028.0,82027.0,0.0609601]
[1742312773817,0.2219193,82028.0,82027.0,0.0609601]
[1742312774002,0.2839193,82028.0,82027.0,0.0609601]
[1742312774414,0.1029,82028.0,82027.0,0.0609601]
[1742312774605,0.162,82028.0,82027.0,0.1238601]
[1742312774805,0.2839193,82028.0,82027.0,0.1238601]
[1742312775012,0.2839193,82028.0,82027.0,0.0609601]
[1742312775411,0.162,82028.0,82017.0,0.0609672]
[1742312775607,0.162,82028.0,82016.0,0.00018279]
[1742312775608,0.1219356,82017.0,82016.0,0.00018279]
[1742312775813,0.3480956,82017.0,82016.0,0.12211989]
[1742312776003,0.3732956,82017.0,82016.0,0.12211989]
[1742312776211,0.4413956,82017.0,82016.0,0.12211989]
[1742312776414,0.40741581,82017.0,82016.0,0.00018279]
[1742312776608,0.1219446,82011.0,82010.0,0.1829169]
[1742312776814,0.2219446,82011.0,82010.0,0.1829169]
[1742312777015,0.2838446,82011.0,82010.0,0.0609728]
[1742312777406,0.0609738,82009.0,81985.0,0.18019378]
[1742312777608,0.120958,82002.0,82001.0,0.1219528]
[1742312777813,0.220958,82002.0,82001.0,0.1219528]
[1742312778024,0.313758,82002.0,82001.0,0.1219528]
[1742312778224,0.310758,82002.0,82001.0,0.2439108]
[1742312778525,0.1219594,82001.0,82000.0,0.0319]
[1742312778722,0.2481194,82001.0,82000.0,0.0319]
[1742312779025,0.3100194,82001.0,82000.0,0.0319]
[1742312779327,0.3100194,82001.0,82000.0,0.1538609]
[1742312780423,0.3100194,82001.0,82000.0,0.0319]
[1742312780613,0.3130194,82001.0,82000.0,0.0319]
[1742312780814,0.3140194,82001.0,82000.0,0.0319]
[1742312781011,0.1829451,81999.0,81998.0,0.1219631]
[1742312781212,0.1219639,81998.0,81997.0,0.0001829]
[1742312781417,0.2848639,81998.0,81997.0,0.0001829]
[1742312781734,0.2166639,81998.0,81997.0,0.0001829]
[1742312782028,0.1829496,81997.0,81996.0,0.1219667]
[1742312782211,0.2829496,81997.0,81996.0,0.1219667]
[1742312782412,0.3458496,81997.0,81996.0,0.1219667]
[1742312782615,0.1219743,81991.0,81990.0,0.0609872]
[1742312782815,0.2889743,81991.0,81990.0,0.0609872]
[1742312783533,0.1219862,81983.0,81982.0,0.1221689]
[1742312783730,0.3481462,81983.0,81982.0,0.2441556]
[1742312783925,0.3481462,81983.0,81982.0,0.0001829]
[1742312784125,0.7089462,81983.0,81982.0,0.1221706]
[1742312784327,0.7742462,81983.0,81982.0,0.0001829]
[1742312784531,0.7151462,81983.0,81982.0,0.1221706]
[1742312784731,0.7742462,81983.0,81982.0,0.1835706]
[1742312785032,0.4134462,81983.0,81982.0,0.1835706]
[1742312785226,0.4134462,81983.0,81982.0,0.0021829]
[1742312785418,0.4134462,81983.0,81982.0,0.1251706]
[1742312785825,0.3923462,81983.0,81982.0,0.1251706]
[1742312786026,0.4134462,81983.0,81982.0,0.1912706]
[1742312786417,0.1653,81983.0,81982.0,0.1912706]
[1742312786731,0.2915,81983.0,81982.0,0.1912706]
[1742312786926,0.4134862,81983.0,81982.0,0.1912706]
[1742312787527,0.4134862,81983.0,81982.0,0.1251706]
[1742312787823,0.3542862,81983.0,81982.0,0.1251706]
[1742312788024,0.41592573,81983.0,81982.0,0.1251706]
[1742312788429,0.35672573,81983.0,81982.0,0.1251706]
[1742312788629,0.35672573,81983.0,81982.0,0.1884706]
[1742312788829,0.28972573,81983.0,81982.0,0.1884706]
[1742312789037,0.00243953,81983.0,81982.0,0.1884706]
[1742312789223,0.00243953,81983.0,81982.0,0.2209706]
[1742312790236,0.12442573,81983.0,81982.0,0.2209706]
[1742312790731,0.12442573,81983.0,81982.0,0.1874706]
[1742312791032,0.12442573,81983.0,81982.0,0.1569706]
[1742312791033,0.54822573,81983.0,81982.0,0.1569706]
[1742312791234,0.54922573,81983.0,81982.0,0.1854706]
[1742312791818,0.39653953,81983.0,81982.0,0.1854706]
[1742312792019,0.36623953,81983.0,81982.0,0.1854706]
[1742312792732,0.00543953,81983.0,81982.0,0.1854706]
[1742312793637,0.00443953,81983.0,81982.0,0.1854706]
[1742312794138,0.03623953,81983.0,81982.0,0.1854706]
[1742312794319,0.03423953,81983.0,81982.0,0.1854706]
[1742312794934,0.03523953,81983.0,81982.0,0.1854706]
[1742312795432,0.15732573,81983.0,81982.0,0.1854706]
[1742312795625,0.22542573,81983.0,81982.0,0.1854706]
[1742312795827,0.29072573,81983.0,81982.0,0.1854706]
[1742312796432,0.28972573,81983.0,81982.0,0.1854706]
[1742312796633,0.22352573,81983.0,81982.0,0.0001829]
[1742312796938,0.65252573,81983.0,81982.0,0.1221706]
[1742312797139,0.62622573,81983.0,81982.0,0.1221706]
[1742312797434,0.29272573,81983.0,81982.0,0.1221706]
[1742312797934,0.13753953,81983.0,81982.0,0.1859706]
[1742312798143,0.20032573,81983.0,81982.0,0.1859706]
[1742312798449,0.07833953,81983.0,81982.0,0.1859706]
[1742312799041,0.25952573,81983.0,81982.0,0.1859706]
[1742312799243,0.29202573,81983.0,81982.0,0.1859706]
[1742312800426,0.25522573,81983.0,81982.0,0.1859706]
[1742312800824,0.32342573,81983.0,81982.0,0.1859706]
[1742312801028,0.25522573,81983.0,81982.0,0.1859706]
[1742312801642,0.25522573,81983.0,81982.0,0.0001829]
[1742312801840,0.74222573,81983.0,81982.0,0.0001829]
[1742312802741,0.81042573,81983.0,81982.0,0.0001829]
[1742312802944,0.2440472,81961.0,81960.0,0.061009]
[1742312803133,0.1220223,81961.0,81960.0,0.07433442]
[1742312803934,0.1220223,81961.0,81960.0,0.10463442]
[1742312804330,0.1220223,81961.0,81960.0,0.10763442]
[1742312804843,0.1220223,81961.0,81960.0,0.14233442]
[1742312806945,0.1262,81965.0,81964.0,0.1220145]
[1742312807444,0.1262,81965.0,81964.0,0.1855145]
[1742312807645,0.0331,81968.0,81967.0,0.12201]
[1742312807846,0.1263829,81969.0,81968.0,0.1220085]
[1742312808043,0.0001829,81969.0,81968.0,0.1220085]
[1742312808245,0.1001829,81969.0,81968.0,0.1855085]
[1742312808639,0.0332829,81969.0,81968.0,0.1855085]
[1742312809548,0.0001829,81969.0,81968.0,0.1855085]
[1742312810542,0.0001829,81969.0,81968.0,0.1875085]
[1742312811944,0.0319829,81969.0,81968.0,0.1875085]
[1742312812145,0.22219,81969.0,81968.0,0.1875085]
[1742312812357,0.21689,81969.0,81968.0,0.1240085]
[1742312812549,0.28509,81969.0,81968.0,0.1240085]
[1742312812749,0.28509,81969.0,81968.0,0.002]
[1742312812952,0.28349,81969.0,81968.0,0.002]
[1742312813150,0.28752994,81969.0,81968.0,0.002]
[1742312813350,0.28752994,81969.0,81968.0,0.12225871]
[1742312813949,0.28752994,81969.0,81968.0,0.0535642]
[1742312814760,0.21932994,81969.0,81968.0,0.1162642]
[1742312814959,0.28752994,81969.0,81968.0,0.1162642]
[1742312815457,0.1830456,81955.0,81954.0,0.1220214]
[1742312815650,0.2830456,81955.0,81954.0,0.13495731]
[1742312815846,0.2830456,81955.0,81954.0,0.1220214]
[1742312816154,0.1220294,81954.0,81953.0,0.0627]
[1742312816452,0.4123294,81954.0,81953.0,0.1847309]
[1742312816652,0.4073294,81954.0,81953.0,0.1847309]
[1742312817352,0.4073294,81954.0,81953.0,0.1897309]
[1742312817659,0.4043294,81954.0,81953.0,0.1897309]
[1742312817849,0.2781294,81954.0,81953.0,0.1897309]
[1742312818050,0.0610123,81958.0,81957.0,0.2440432]
[1742312818255,0.1610123,81958.0,81957.0,0.2440432]
[1742312818455,0.0308,81958.0,81957.0,0.2440432]
[1742312818955,0.1308,81958.0,81957.0,0.2440432]
[1742312819151,0.2528234,81958.0,81957.0,0.2440432]
[1742312820047,0.2568234,81958.0,81957.0,0.2440432]
[1742312820456,0.1598234,81958.0,81957.0,0.1220228]
[1742312820666,0.2922234,81958.0,81957.0,0.1220228]
[1742312820861,0.3592234,81958.0,81957.0,0.1220228]
[1742312821762,0.3562234,81958.0,81957.0,0.1220228]
[1742312821960,0.2701,81958.0,81957.0,0.1220228]
[1742312822264,0.2383,81958.0,81957.0,0.1866228]
[1742312822653,0.2292,81958.0,81957.0,0.1866228]
[1742312822854,0.3563234,81958.0,81957.0,0.1866228]
[1742312823165,0.4194234,81958.0,81957.0,0.1866228]
[1742312823369,0.3512234,81958.0,81957.0,0.1866228]
[1742312823669,0.4154234,81958.0,81957.0,0.1220228]
[1742312823963,0.4154234,81958.0,81957.0,0.0610109]
[1742312824163,0.3472234,81958.0,81957.0,0.0610109]
[1742312824366,0.4194234,81958.0,81957.0,0.0610109]
[1742312824859,0.4184234,81958.0,81957.0,0.0610109]
[1742312825060,0.3592234,81958.0,81957.0,0.0610109]
[1742312825371,0.4154234,81958.0,81957.0,0.1231109]
[1742312825556,0.2342,81958.0,81957.0,0.1231109]
[1742312825756,0.2392,81958.0,81957.0,0.1231109]
[1742312825959,0.4204234,81958.0,81957.0,0.0610109]
[1742312826469,0.3194234,81958.0,81957.0,0.1231109]
[1742312826962,0.3154234,81958.0,81957.0,0.1231109]
[1742312827263,0.3184234,81958.0,81957.0,0.1231109]
[1742312828165,0.3154234,81958.0,81957.0,0.1231109]
[1742312828373,0.2372,81958.0,81957.0,0.1231109]
[1742312828562,0.2048,81958.0,81957.0,0.1231109]
[1742312829765,0.003,81958.0,81957.0,0.1231109]
[1742312829962,0.007,81958.0,81957.0,0.1231109]
[1742312830353,0.107,81958.0,81957.0,0.1231109]
[1742312830962,0.1290234,81958.0,81957.0,0.1231109]
[1742312831164,0.2590234,81958.0,81957.0,0.0917109]
[1742312831368,0.0610132,81956.0,81952.0,0.0001829]
[1742312831569,0.1220309,81953.0,81952.0,0.1832259]
[1742312831864,0.2220309,81953.0,81952.0,0.1832259]
[1742312832262,0.2220309,81953.0,81952.0,0.061198]
[1742312832463,0.2220309,81953.0,81952.0,0.0001829]
[1742312832766,0.1220577,81935.0,81934.0,0.1830875]
[1742312832970,0.2482177,81935.0,81934.0,0.22732992]
[1742312833167,0.3482177,81935.0,81934.0,0.22732992]
[1742312833570,0.1830924,81933.0,81932.0,0.1220609]
[1742312833759,0.2404924,81933.0,81932.0,0.1220609]
[1742312833959,0.2239924,81933.0,81932.0,0.1220609]
[1742312834270,0.3443924,81933.0,81932.0,0.1220609]
[1742312835163,0.3427924,81933.0,81932.0,0.1220609]
[1742312835360,0.1613,81933.0,81924.0,0.00018303]
[1742312835670,0.2801081,81927.0,81926.0,0.0610348]
[1742312835865,0.4062681,81927.0,81926.0,0.0610348]
[1742312836061,0.5034681,81927.0,81926.0,0.0610348]
[1742312836459,0.50590929,81927.0,81926.0,0.0610348]
[1742312837569,0.50590929,81927.0,81926.0,0.0640348]
[1742312837968,0.50590929,81927.0,81926.0,0.003]
[1742312838160,0.81660939,81927.0,81926.0,0.003]
[1742312839668,0.82060939,81927.0,81926.0,0.003]
[1742312839869,0.0610419,81918.0,81914.0,0.1860883]
[1742312840071,0.1220875,81915.0,81914.0,0.2471315]
[1742312840473,0.0610501,81907.0,81899.0,0.88728]
[1742312840674,0.1854024,81906.0,81905.0,0.1221009]
[1742312840977,0.1854024,81906.0,81905.0,0.1866009]
[1742312843665,0.1854024,81906.0,81905.0,0.1886009]
[1742312845977,0.2854024,81906.0,81905.0,0.1886009]
[1742312846173,0.12616,81910.0,81907.0,0.1831453]
[1742312846385,0.1526964,81909.0,81908.0,0.1225489]
[1742312846577,0.15513813,81909.0,81908.0,0.1225489]
[1742312846878,0.18773813,81909.0,81908.0,0.0610489]
[1742312847673,0.16564173,81909.0,81908.0,0.0610489]
[1742312847975,0.10644173,81909.0,81908.0,0.1225489]
[1742312848185,0.16564173,81909.0,81908.0,0.1225489]
[1742312848477,0.28773813,81909.0,81908.0,0.0615]
[1742312848669,0.28773813,81909.0,81908.0,0.1220979]
[1742312848870,0.1220979,81908.0,81907.0,0.001]
[1742312849081,0.12453966,81908.0,81907.0,0.1230994]
[1742312849280,0.18773966,81908.0,81907.0,0.001]
[1742312849777,0.1210994,81907.0,81906.0,0.1220998]
[1742312850188,0.1210994,81907.0,81902.0,0.0615]
[1742312850189,0.061052,81904.0,81902.0,0.0615]
[1742312850370,0.1221083,81901.0,81898.0,0.1221118]
[1742312850571,0.12355027,81901.0,81896.0,0.0610578]
[1742312850770,0.21945027,81901.0,81896.0,0.122115]
[1742312850969,0.21945027,81901.0,81894.0,0.0301]
[1742312851169,0.50904207,81901.0,81886.0,0.1221293]
[1742312851370,0.1221292,81887.0,81886.0,0.1221293]
[1742312851587,0.2221292,81887.0,81886.0,0.2743549]
[1742312851971,0.2863292,81887.0,81886.0,0.2743549]
[1742312852275,0.2843292,81887.0,81886.0,0.28729116]
[1742312852883,0.1642,81887.0,81886.0,0.28729116]
[1742312853080,0.2863292,81887.0,81886.0,0.29029116]
[1742312855181,0.1221382,81881.0,81880.0,0.4829397]
[1742312855382,0.1221382,81881.0,81880.0,0.3608]
[1742312855383,0.3483382,81881.0,81880.0,0.3608]
[1742312855681,0.3801382,81881.0,81880.0,0.4829397]
[1742312856483,0.4111382,81881.0,81880.0,0.3618]
[1742312856685,0.1832356,81870.0,81867.0,0.00068]
[1742312856872,0.1221859,81849.0,81848.0,0.00064]
[1742312857072,0.0610892,81854.0,81847.0,0.061093]
[1742312857073,0.0610922,81850.0,81847.0,0.061093]
[1742312857280,0.0318,81849.0,81848.0,0.2141803]
[1742312857683,0.3608,81851.0,81850.0,0.1221844]
[1742312857983,0.4016,81851.0,81850.0,0.1221844]
[1742312858190,0.4016,81851.0,81842.0,0.0131661]
[1742312858191,0.1221949,81843.0,81842.0,0.1353604]
[1742312858378,0.0610922,81850.0,81849.0,0.1221859]
[1742312858379,0.0945,81850.0,81849.0,0.1221859]
[1742312858692,0.158,81850.0,81849.0,0.1221859]
[1742312859188,0.2801844,81850.0,81849.0,0.1221859]
[1742312859585,0.2801844,81850.0,81849.0,0.1535859]
[1742312859988,0.2821844,81850.0,81849.0,0.1535859]
[1742312860380,0.3148844,81850.0,81849.0,0.1535859]
[1742312861181,0.2503844,81850.0,81849.0,0.1535859]
[1742312861583,0.2543844,81850.0,81849.0,0.1535859]
[1742312861777,0.004,81850.0,81849.0,0.1535859]
[1742312861977,0.1281844,81850.0,81849.0,0.1535859]
[1742312862172,0.1281844,81850.0,81849.0,0.0314]
[1742312862385,0.061098,81843.0,81838.0,0.1833015]
[1742312862585,0.4830038,81839.0,81838.0,0.1833015]
[1742312862785,0.12204481,81839.0,81838.0,0.1833015]
[1742312863378,0.22204481,81839.0,81838.0,0.1833015]
[1742312864687,0.16284481,81839.0,81838.0,0.1833015]
[1742312864892,0.22304481,81839.0,81838.0,0.1833015]
[1742312865191,0.12304481,81839.0,81838.0,0.1833015]
[1742312865383,0.22304481,81839.0,81838.0,0.1833015]
[1742312865694,0.12204481,81839.0,81838.0,0.1833015]
[1742312865874,0.22204481,81839.0,81838.0,0.1833015]
[1742312866080,0.1,81839.0,81838.0,0.1833015]
[1742312866292,0.1221965,81842.0,81841.0,0.1221979]
[1742312866685,0.1221965,81842.0,81841.0,0.1523979]
[1742312866984,0.1522965,81842.0,81841.0,0.1523979]
[1742312867185,0.5440965,81842.0,81841.0,0.1523979]
[1742312867488,0.54654023,81842.0,81841.0,0.0302]
[1742312868690,0.54854023,81842.0,81841.0,0.1523979]
[1742312870289,0.55258373,81842.0,81813.0,0.00064]
[1742312870494,0.3608,81820.0,81819.0,0.1222307]
[1742312870689,0.3608,81820.0,81819.0,0.1554307]
[1742312870891,0.4830292,81820.0,81819.0,0.0332]
[1742312871082,0.4830292,81820.0,81819.0,0.1554307]
[1742312871277,0.3608,81820.0,81819.0,0.1554307]
[1742312871980,0.4830292,81820.0,81819.0,0.1554307]
[1742312872375,0.5147292,81820.0,81819.0,0.1554307]
[1742312872789,0.3925,81820.0,81818.0,0.0611161]
[1742312872991,0.4536146,81820.0,81819.0,0.1886307]
[1742312873184,0.5798546,81820.0,81819.0,0.1886307]
[1742312874597,0.5798546,81820.0,81819.0,0.1554307]
[1742312874791,0.5798546,81820.0,81819.0,0.0332]
[1742312875184,0.1222337,81817.0,81816.0,0.0317]
[1742312875687,0.1872337,81817.0,81816.0,0.0317]
[1742312875893,0.1872337,81817.0,81816.0,0.1539352]
[1742312876095,0.1872337,81817.0,81816.0,0.1854352]
[1742312876293,0.1872337,81817.0,81816.0,0.1222352]
[1742312876479,0.2872337,81817.0,81816.0,0.1222352]
[1742312876685,0.2872337,81817.0,81816.0,0.1854352]
[1742312878203,0.2872337,81817.0,81816.0,0.0315]
[1742312878392,0.1222516,81805.0,81804.0,0.061126]
[1742312878587,0.2222516,81805.0,81804.0,0.183373]
[1742312879102,0.12628,81806.0,81805.0,0.1222516]
[1742312879486,0.1222355,81816.0,81812.0,0.1222412]
[1742312879487,0.12646327,81813.0,81812.0,0.1222412]
[1742312879991,0.24870297,81813.0,81812.0,0.1222412]
[1742312880192,0.24870297,81813.0,81812.0,0.1854412]
[1742312880493,0.00018327,81813.0,81812.0,0.1854412]
[1742312881095,0.0328,81822.0,81812.0,0.1854412]
[1742312881096,0.13367974,81835.0,81834.0,0.1222083]
[1742312881397,0.13367654,81835.0,81834.0,0.1222083]
[1742312881700,0.1222068,81835.0,81834.0,0.1222083]
[1742312881902,0.1222068,81835.0,81834.0,0.16814247]
[1742312882091,0.0328,81839.0,81838.0,0.1222023]
[1742312882492,0.1550009,81839.0,81838.0,0.1554023]
[1742312882784,0.1550009,81839.0,81833.0,0.1222023]
[1742312882785,0.2444252,81834.0,81833.0,0.1222023]
[1742312883185,0.1222128,81831.0,81830.0,0.0611067]
[1742312883388,0.155111,81833.0,81832.0,0.1222113]
[1742312883584,0.1551098,81833.0,81832.0,0.1222113]
[1742312884203,0.1222158,81829.0,81828.0,0.1833249]
[1742312884404,0.2222158,81829.0,81828.0,0.1833249]
[1742312884589,0.1222117,81832.0,81831.0,0.1222113]
[1742312884897,0.1540117,81832.0,81831.0,0.1222113]
[1742312885102,0.1540117,81832.0,81831.0,0.1553113]
[1742312885899,0.1843117,81832.0,81831.0,0.1868113]
[1742312886294,0.0303,81832.0,81831.0,0.1868113]
[1742312886603,0.00128,81835.0,81834.0,0.1222083]
[1742312886798,0.3608,81840.0,81839.0,0.1222009]
[1742312887201,0.3608,81840.0,81839.0,0.1844009]
[1742312887897,0.5829994,81840.0,81839.0,0.1844009]
[1742312888098,0.4829994,81840.0,81839.0,0.1844009]
[1742312888394,0.3608,81840.0,81839.0,0.1844009]
[1742312888703,0.5829994,81840.0,81839.0,0.1844009]
[1742312889000,0.5188994,81840.0,81839.0,0.1844009]
[1742312889217,0.5191994,81840.0,81839.0,0.1844009]
[1742312889432,0.4,81840.0,81839.0,0.1844009]
[1742312890695,0.0392,81840.0,81839.0,0.1844009]
[1742312890900,0.1613994,81840.0,81839.0,0.1844009]
[1742312892995,0.1944994,81840.0,81839.0,0.1844009]
[1742312894602,0.0723,81840.0,81839.0,0.1844009]
[1742312895294,0.1944994,81840.0,81839.0,0.0622]
[1742312895491,0.0723,81840.0,81837.0,0.00922709]
[1742312895695,0.0723,81840.0,81838.0,0.1222009]
[1742312895696,0.0611004,81839.0,81838.0,0.1222009]
[1742312895908,0.00018327,81843.0,81838.0,0.0312]
[1742312896200,0.3608,81855.0,81854.0,0.1221785]
[1742312896398,0.3618,81855.0,81854.0,0.1221785]
[1742312896596,0.3767,81855.0,81854.0,0.1533785]
[1742312896802,0.485377,81855.0,81854.0,0.1533785]
[1742312896996,0.3608,81855.0,81854.0,0.1837785]
[1742312897403,0.3608,81855.0,81854.0,0.19661574]
[1742312897910,0.3608,81855.0,81854.0,0.22661574]
[1742312898395,0.3608,81862.0,81861.0,0.122168]
[1742312898807,0.3608,81862.0,81861.0,0.152568]
[1742312899102,0.3608,81862.0,81861.0,0.185568]
[1742312899803,0.3618,81862.0,81861.0,0.185568]
[1742312900007,0.0610859,81859.0,81856.0,0.0610875]
[1742312900305,0.0333,81858.0,81857.0,0.061087]
[1742312900498,0.2181725,81858.0,81857.0,0.061087]
[1742312900698,0.3444125,81858.0,81857.0,0.061087]
[1742312901003,0.22224,81858.0,81857.0,0.061087]
[1742312901202,0.19004,81858.0,81857.0,0.124487]
[1742312901505,0.0333,81858.0,81857.0,0.124487]
[1742312901707,0.8767665,81862.0,81861.0,0.122168]
[1742312901908,0.7516,81862.0,81861.0,0.122168]
[1742312902099,0.9060665,81862.0,81861.0,0.185368]
[1742312903303,0.9100665,81862.0,81861.0,0.185368]
[1742312904202,0.7902,81862.0,81861.0,0.185368]
[1742312904406,0.7279,81862.0,81861.0,0.185368]
[1742312904702,0.004,81862.0,81861.0,0.185368]
[1742312904914,0.0610743,81874.0,81873.0,0.0610743]
[1742312905406,0.122162,81867.0,81866.0,0.1832356]
[1742312905713,0.514762,81867.0,81866.0,0.1832356]
[1742312905910,0.122162,81865.0,81864.0,0.0610814]
[1742312906115,0.1221665,81862.0,81858.0,0.00018327]
[1742312906304,0.3608,81859.0,81858.0,0.0841433]
[1742312906613,0.37175609,81859.0,81858.0,0.0841433]
[1742312907111,0.37175609,81859.0,81858.0,0.1485433]
[1742312907301,0.3608,81859.0,81858.0,0.1485433]
[1742312907900,0.0324,81861.0,81860.0,0.1221695]
[1742312908413,0.04334924,81861.0,81860.0,0.1834695]
[1742312908614,0.01094924,81861.0,81860.0,0.1834695]
[1742312909112,0.01194924,81861.0,81860.0,0.1834695]
[1742312909314,0.001,81861.0,81860.0,0.1834695]
[1742312909509,1e-07,81861.0,81860.0,0.1834695]
[1742312909714,1e-07,81861.0,81860.0,0.3334695]
[1742312910300,0.36098327,81875.0,81874.0,0.1221486]
[1742312910618,0.49413772,81875.0,81874.0,0.1221486]
[1742312910911,0.01100735,81875.0,81874.0,0.6091486]
[1742312911105,0.39929507,81884.0,81883.0,0.1221352]
[1742312911713,0.39929507,81884.0,81883.0,0.1839352]
[1742312912303,0.36476605,81887.0,81886.0,0.183196]
[1742312912509,5e-08,81887.0,81886.0,0.183196]
[1742312912711,0.01146425,81904.0,81898.0,0.1221128]
[1742312912912,0.01146425,81904.0,81898.0,0.2483128]
[1742312913218,0.0631,81906.0,81898.0,0.2796128]
[1742312914117,0.00072959,81899.0,81898.0,0.6404128]
[1742312915111,9e-08,81899.0,81898.0,0.6404128]
[1742312915322,0.00400009,81899.0,81898.0,0.6404128]
[1742312915515,9e-08,81899.0,81898.0,0.6404128]
[1742312916011,9e-08,81899.0,81898.0,0.7904128]
[1742312916427,0.00018327,81907.0,81906.0,0.1221009]
[1742312916625,0.00018327,81907.0,81906.0,0.2482609]
[1742312916822,0.12228267,81907.0,81906.0,0.1221009]
[1742312917017,0.37688327,81907.0,81902.0,0.0610519]
[1742312917217,0.1221069,81903.0,81902.0,0.2442065]
[1742312917418,0.1221098,81901.0,81900.0,0.1221084]
[1742312917620,0.2221098,81901.0,81900.0,0.1221084]
[1742312917925,0.2885098,81901.0,81900.0,0.1221084]
[1742312918125,0.2885098,81901.0,81900.0,0.08391423]
[1742312918723,0.1885098,81901.0,81900.0,0.08391423]
[1742312919026,0.2885098,81901.0,81900.0,0.08391423]
[1742312919428,0.2905098,81901.0,81900.0,0.08391423]
[1742312919725,0.2925098,81901.0,81900.0,0.08391423]
[1742312921220,0.1925098,81901.0,81900.0,0.08391423]
[1742312921418,0.2925098,81901.0,81900.0,0.08391423]
[1742312922928,0.1221113,81899.0,81898.0,0.12229594]
[1742312923120,0.5829113,81899.0,81898.0,0.12229594]
[1742312923320,0.6468113,81899.0,81898.0,0.12229594]
[1742312924325,0.4247,81899.0,81898.0,0.12229594]
[1742312924723,0.4277,81899.0,81898.0,0.15289594]
[1742312924929,0.4277,81899.0,81898.0,0.18499594]
[1742312925125,0.4297,81899.0,81898.0,0.18499594]
[1742312925329,0.1910113,81899.0,81898.0,0.18499594]
[1742312925631,0.0689,81899.0,81898.0,0.18499594]
[1742312925822,0.1910113,81899.0,81898.0,0.18499594]
[1742312926029,0.1910113,81899.0,81898.0,0.12229594]
[1742312926537,0.5518113,81899.0,81898.0,0.12229594]
[1742312926730,0.5518113,81899.0,81898.0,0.00018314]
[1742312927137,0.5542533,81899.0,81898.0,0.00018314]
[1742312927846,0.5542533,81899.0,81898.0,0.12229594]
[1742312928438,0.1934533,81899.0,81898.0,0.12229594]
[1742312928637,0.1934533,81899.0,81898.0,0.18729594]
[1742312929743,0.2434533,81899.0,81898.0,0.12229594]
[1742312930053,0.2934533,81899.0,81898.0,0.12229594]
[1742312930554,0.2434533,81899.0,81898.0,0.12229594]
[1742312931051,0.2934533,81899.0,81898.0,0.12229594]
[1742312931342,0.5701533,81899.0,81898.0,0.00018314]
[1742312931544,0.6542533,81899.0,81898.0,0.00018314]
[1742312931843,0.6542533,81899.0,81898.0,9.25e-06]
[1742312931844,0.6962733,81899.0,81898.0,9.25e-06]
[1742312932044,0.2442551,81892.0,81891.0,0.1221142]
[1742312932246,0.4703751,81892.0,81891.0,0.1221142]
[1742312932549,0.4022751,81892.0,81891.0,0.1221142]
[1742312932750,0.4022751,81892.0,81883.0,0.0126345]
[1742312932751,0.0610637,81889.0,81886.0,0.1831922]
[1742312933047,0.0334423,81888.0,81887.0,0.1221292]
[1742312933234,0.0334423,81888.0,81887.0,0.1856292]
[1742312933235,0.0637423,81888.0,81887.0,0.1856292]
[1742312933851,0.0334423,81888.0,81887.0,0.1856292]
[1742312934434,0.0637423,81888.0,81887.0,0.1856292]
[1742312935545,0.0637423,81888.0,81883.0,0.01287717]
[1742312935546,0.1221337,81884.0,81883.0,0.01287717]
[1742312935750,0.1221337,81884.0,81883.0,0.1221352]
[1742312935952,0.1850337,81884.0,81883.0,0.1221352]
[1742312936441,0.1850337,81884.0,81883.0,0.1856352]
[1742312936639,0.1315623,81888.0,81887.0,0.1221292]
[1742312936946,0.0054423,81888.0,81887.0,0.1221292]
[1742312937145,0.0044423,81888.0,81887.0,0.1856292]
[1742312937349,0.0024423,81888.0,81887.0,0.1856292]
[1742312937649,0.12457,81888.0,81887.0,0.1856292]
[1742312938152,0.19067,81888.0,81887.0,0.1856292]
[1742312938754,0.19167,81888.0,81887.0,0.1856292]
[1742312940253,0.20757,81888.0,81887.0,0.1221292]
[1742312940449,0.0695423,81888.0,81887.0,0.1221292]
[1742312940654,0.0372423,81888.0,81887.0,0.1841292]
[1742312941255,0.0054423,81888.0,81887.0,0.1841292]
[1742312942550,0.0044423,81888.0,81887.0,0.1851292]
[1742312943657,0.0024423,81888.0,81887.0,0.1841292]
[1742312946048,0.0024423,81888.0,81887.0,0.1851292]
[1742312946254,0.0316,81898.0,81897.0,0.1221143]
[1742312946755,0.12612,81904.0,81899.0,0.0610551]
[1742312946958,0.032,81906.0,81905.0,0.1221024]
[1742312947165,0.1541009,81906.0,81905.0,0.05335988]
[1742312947364,0.1541009,81906.0,81904.0,0.04566918]
[1742312947570,0.3151514,81906.0,81905.0,0.1861024]
[1742312947862,0.0610542,81901.0,81897.0,0.00018314]
[1742312948165,0.3608,81898.0,81879.0,0.0309]
[1742312948463,0.1221277,81888.0,81887.0,0.1231292]
[1742312948660,0.2482077,81888.0,81887.0,0.1231292]
[1742312948966,0.1221382,81881.0,81880.0,0.2442705]
[1742312949466,0.12213,81887.0,81886.0,0.1221307]
[1742312949647,0.15708,81888.0,81887.0,0.1221292]
[1742312949960,0.031,81888.0,81887.0,0.1221292]
[1742312950149,0.031,81888.0,81887.0,0.1843292]
[1742312950661,0.00018314,81889.0,81888.0,0.1221277]
[1742312951062,0.00018314,81889.0,81888.0,0.1843277]
[1742312953059,0.00218314,81889.0,81888.0,0.1843277]
[1742312953760,0.00218314,81889.0,81888.0,0.1526277]
[1742312953967,0.00418314,81889.0,81888.0,0.1851277]
[1742312954758,0.00318314,81889.0,81888.0,0.1851277]
[1742312955458,0.00418314,81889.0,81888.0,0.1851277]
[1742312955659,0.12630934,81889.0,81888.0,0.1851277]
[1742312956060,0.12630934,81889.0,81888.0,0.1526277]
[1742312956061,0.00318314,81889.0,81888.0,0.1526277]
[1742312956459,0.00218314,81889.0,81888.0,0.1844277]
[1742312957158,0.00218314,81889.0,81883.0,0.0610672]